bitfinex/quotes_ETHUSD_20250504
["timestamp","ask_amount","ask_price","bid_price","bid_amount"]
[1746335265074,5.42782535,1842.4,1842.0,9.25354568]
[1746335265273,5.42782535,1842.4,1842.3,0.33535678]
[1746335265486,5.42822609,1842.3,1842.0,3.8248]
[1746335265668,5.42839729,1842.2,1841.8,1.42649366]
[1746335265996,10.85805941,1842.0,1841.7,0.7722]
[1746335266195,5.42876904,1842.1,1841.7,3.7722]
[1746335266498,5.42876904,1842.1,1841.7,9.25620303]
[1746335267566,2.37723828,1842.3,1841.7,3.7722]
[1746335268064,5.42872697,1842.1,1841.7,9.25624579]
[1746335268264,5.42872697,1842.1,1841.7,11.18986357]
[1746335268495,5.42872697,1842.1,1841.7,11.1355729]
[1746335269391,5.42843714,1842.2,1841.8,5.42930347]
[1746335269592,5.42843714,1842.2,1841.8,5.42945919]
[1746335269800,5.42843714,1842.2,1841.7,11.13541385]
[1746335270006,5.42861353,1842.1,1841.7,11.13541385]
[1746335270174,5.42861353,1842.1,1841.8,1.11354139]
[1746335270492,5.42833761,1842.2,1841.8,6.54294885]
[1746335270703,5.42833761,1842.2,1841.8,1.11354139]
[1746335270993,5.42833761,1842.2,1841.7,11.13541918]
[1746335271194,5.42858867,1842.1,1841.7,11.13541918]
[1746335272503,5.42853037,1842.2,1841.7,11.13537396]
[1746335272664,10.85711395,1842.2,1841.7,11.13537396]
[1746335272865,10.85710924,1842.2,1841.7,11.13537396]
[1746335273386,5.42853037,1842.2,1841.7,11.13537396]
[1746335273700,5.42853037,1842.2,1841.8,6.54289143]
[1746335274294,5.42853037,1842.2,1841.9,0.33635425]
[1746335274496,5.42853037,1842.2,1841.8,6.54289143]
[1746335274694,5.42858693,1842.1,1842.0,0.33588644]
[1746335274896,5.42858693,1842.1,1841.7,11.13544711]
[1746335275099,5.4289253,1842.0,1841.7,5.70581778]
[1746335275609,6.21360571,1842.3,1841.7,0.7722]
[1746335275610,5.42940705,1841.9,1841.7,0.7722]
[1746335275974,5.42940705,1841.9,1841.6,4.65]
[1746335277270,0.7623,1842.0,1841.6,4.65]
[1746335277515,5.42935934,1841.9,1841.6,4.65]
[1746335277812,0.7623,1842.0,1841.4,6.65494514]
[1746335278118,5.43019619,1841.6,1841.4,6.65494514]
[1746335279120,5.43019619,1841.6,1841.4,3.0]
[1746335279877,5.43035568,1841.5,1841.4,3.0]
[1746335280223,5.43021364,1841.6,1841.4,3.0]
[1746335280550,5.43035568,1841.5,1841.4,3.0]
[1746335281382,7.32330485,1841.5,1841.4,3.0]
[1746335282008,5.43035568,1841.5,1841.4,3.0]
[1746335283806,6.25075568,1841.5,1841.4,3.0]
[1746335286018,5.43212559,1840.9,1840.8,25.0225]
[1746335286326,5.43196257,1841.0,1840.8,0.7875]
[1746335287090,5.43170445,1841.1,1840.8,0.7875]
[1746335287504,5.43170445,1841.1,1840.5,15.32973737]
[1746335287505,1.1683483,1841.1,1840.5,14.52559909]
[1746335287823,5.43199271,1841.0,1840.6,3.0]
[1746335288592,5.43235367,1840.9,1840.6,3.0]
[1746335288792,10.86473881,1840.9,1840.6,3.0]
[1746335289119,5.43255087,1840.8,1840.6,3.0]
[1746335289320,5.43255087,1840.8,1840.7,0.31926291]
[1746335289727,6.51901941,1840.8,1840.7,0.31926291]
[1746335290031,11.9516933,1840.8,1840.5,3.65494514]
[1746335290226,5.43224876,1840.9,1840.6,1.14342014]
[1746335290540,5.43201814,1841.0,1840.6,1.14342014]
[1746335290541,5.4319539,1841.0,1840.6,6.57640779]
[1746335291422,5.4319539,1841.0,1840.6,1.14342014]
[1746335291831,12.24827332,1841.1,1840.6,6.57636489]
[1746335292039,5.43197151,1841.0,1840.6,8.08274718]
[1746335292236,12.24819315,1841.1,1840.6,2.64980243]
[1746335292442,5.43206555,1841.0,1840.6,2.64980243]
[1746335292637,5.43206555,1841.0,1840.6,8.08277148]
[1746335293257,10.86414315,1841.0,1840.6,8.08277148]
[1746335293554,5.43206555,1841.0,1840.6,8.08277369]
[1746335294750,12.24816901,1841.1,1840.6,2.64980243]
[1746335294940,12.24816901,1841.1,1840.7,5.43266515]
[1746335295144,11.47166901,1841.1,1840.7,5.43266515]
[1746335295453,11.47166901,1841.1,1840.8,0.32110419]
[1746335295659,16.90345468,1841.1,1840.8,0.32110419]
[1746335295955,11.47166901,1841.1,1840.8,0.32110419]
[1746335296450,11.47166901,1841.1,1840.9,0.31972414]
[1746335296653,11.47166901,1841.1,1840.6,11.68855897]
[1746335296827,11.47166901,1841.1,1840.7,1.48951682]
[1746335297154,5.43184032,1841.0,1840.7,1.48951682]
[1746335297367,5.43213533,1840.9,1840.7,1.48951682]
[1746335297523,5.43204008,1841.0,1840.7,0.32066092]
[1746335297723,10.86411324,1841.0,1840.7,0.32066092]
[1746335298068,5.43204008,1841.0,1840.7,0.32066092]
[1746335299951,11.4716373,1841.1,1840.7,5.75312213]
[1746335301278,5.4316373,1841.1,1840.7,5.75337032]
[1746335301576,5.43193823,1841.0,1840.7,1.5215834]
[1746335302679,5.43213738,1840.9,1840.7,0.32066092]
[1746335304081,5.43220366,1840.9,1840.7,0.32066092]
[1746335304383,5.43242068,1840.8,1840.7,0.32066092]
[1746335304748,5.43242068,1840.8,1840.3,0.7655]
[1746335304749,5.43316015,1840.6,1840.3,0.7655]
[1746335305144,5.43290007,1840.7,1840.3,6.19936413]
[1746335305487,5.43219586,1840.9,1840.4,5.43358639]
[1746335305782,10.86456867,1840.9,1840.5,6.19877829]
[1746335305949,5.43271705,1840.7,1840.5,0.7655]
[1746335306162,5.43265511,1840.8,1840.5,0.7655]
[1746335306560,5.43276878,1840.7,1840.5,0.7655]
[1746335306942,10.86574054,1840.7,1840.5,0.7655]
[1746335307245,11.47192237,1841.0,1840.3,0.7655]
[1746335307246,5.43302025,1840.6,1840.3,0.7655]
[1746335307446,5.43302025,1840.6,1840.3,1.58443177]
[1746335307888,5.4329184,1840.7,1840.3,7.01829854]
[1746335308184,6.23048145,1840.8,1840.3,12.45207189]
[1746335308370,12.26905959,1841.0,1840.5,0.7659]
[1746335308679,5.4322578,1840.9,1840.5,6.19918899]
[1746335308883,5.4322578,1840.9,1840.5,7.36788491]
[1746335309087,11.47197209,1841.0,1840.6,5.43281647]
[1746335309448,5.43224775,1840.9,1840.5,7.36772374]
[1746335309791,6.04,1841.0,1840.7,3.7659]
[1746335309948,6.04,1841.0,1840.8,0.37659]
[1746335311169,5.43267161,1840.8,1840.6,3.0]
[1746335311374,11.47195484,1841.0,1840.6,3.0]
[1746335311987,5.43213089,1840.9,1840.6,3.0]
[1746335315896,5.43213089,1840.9,1840.5,6.56859592]
[1746335316199,5.43252786,1840.8,1840.5,6.56859592]
[1746335319317,5.43259598,1840.8,1840.6,0.32080305]
[1746335321703,5.43227729,1840.9,1840.6,0.32080305]
[1746335322307,6.04,1841.0,1840.7,5.4327136]
[1746335322493,6.04,1841.0,1840.7,1.10933458]
[1746335323284,11.47185384,1841.0,1840.7,1.10933458]
[1746335323516,11.47185384,1841.0,1840.7,0.32033458]
[1746335323517,5.43234154,1840.9,1840.7,0.32033458]
[1746335323822,5.43242068,1840.8,1840.5,5.423]
[1746335324205,5.43242068,1840.8,1840.5,0.789]
[1746335326117,5.43216319,1840.9,1840.5,6.22217349]
[1746335326280,10.86453063,1840.9,1840.5,6.22217349]
[1746335326615,5.43246219,1840.8,1840.5,0.789]
[1746335326814,5.43246219,1840.8,1840.5,2.25458147]
[1746335332021,6.23249468,1841.0,1840.5,0.789]
[1746335332231,6.23248397,1841.0,1840.6,5.43300583]
[1746335332401,5.43198397,1841.0,1840.5,6.27634876]
[1746335332601,5.43198397,1841.0,1840.6,5.43286772]
[1746335334131,5.43212675,1840.9,1840.5,6.2220743]
[1746335334333,5.43212675,1840.9,1840.7,0.32050675]
[1746335334497,5.43198397,1841.0,1840.6,5.43299883]
[1746335334835,5.43198397,1841.0,1840.8,0.32003834]
[1746335335010,5.43198397,1841.0,1840.7,0.32050675]
[1746335335183,5.43198397,1841.0,1840.9,0.31956997]
[1746335335385,6.51834863,1841.0,1840.6,5.43297709]
[1746335335621,5.43198397,1841.0,1840.9,0.31956997]
[1746335336127,5.43198397,1841.0,1840.6,5.43297709]
[1746335336289,5.43198397,1841.0,1840.9,0.31956997]
[1746335336488,5.43198397,1841.0,1840.6,5.43297709]
[1746335336820,5.43198397,1841.0,1840.7,0.32050675]
[1746335338301,5.43198397,1841.0,1840.6,5.43300122]
[1746335338506,5.43199183,1841.0,1840.8,0.32003834]
[1746335338715,6.51835993,1841.0,1840.6,5.43300122]
[1746335339023,5.43199183,1841.0,1840.9,0.31956997]
[1746335339224,5.43199183,1841.0,1840.6,5.43300122]
[1746335339225,10.86406358,1841.0,1840.6,5.43300122]
[1746335339427,5.43199183,1841.0,1840.9,0.31956997]
[1746335339932,5.43199183,1841.0,1840.6,5.43298544]
[1746335340096,5.43199183,1841.0,1840.9,0.31956997]
[1746335340427,6.51835585,1841.0,1840.6,5.43298544]
[1746335340647,5.43199183,1841.0,1840.9,0.31956997]
[1746335340806,10.86409473,1841.0,1840.6,5.43298544]
[1746335341007,5.43199183,1841.0,1840.9,0.31956997]
[1746335341198,10.86409509,1841.0,1840.6,5.43298544]
[1746335341399,5.43199183,1841.0,1840.9,0.31956997]
[1746335341600,5.43199183,1841.0,1840.5,0.84332654]
[1746335341601,5.43235692,1840.9,1840.5,6.22218694]
[1746335341903,5.43235692,1840.9,1840.5,6.27640227]
[1746335342301,5.43235692,1840.9,1840.5,6.22207573]
[1746335342507,5.43170783,1841.1,1840.7,5.43264934]
[1746335342704,5.43170783,1841.1,1840.8,0.8081]
[1746335343044,7.66576593,1841.1,1840.8,0.8081]
[1746335343208,5.43170783,1841.1,1840.8,0.8081]
[1746335343732,11.47141801,1841.2,1840.8,6.24051036]
[1746335344234,11.47141801,1841.2,1840.8,11.6727041]
[1746335344448,11.47141801,1841.2,1840.8,6.24029374]
[1746335344826,9.09196843,1841.4,1841.0,6.23981529]
[1746335346244,9.09196843,1841.4,1841.0,7.40700584]
[1746335346540,3.66119451,1841.4,1841.0,7.40690692]
[1746335346848,5.43054221,1841.5,1841.0,7.40690692]
[1746335347060,5.43054221,1841.5,1841.0,6.23971637]
[1746335347338,5.43099405,1841.3,1841.0,0.8081]
[1746335347552,5.43083926,1841.4,1841.0,0.8081]
[1746335348438,5.43083926,1841.4,1841.0,6.23986478]
[1746335349344,5.43083926,1841.4,1841.1,0.31749707]
[1746335349643,5.43054882,1841.5,1841.1,0.31749707]
[1746335349820,5.43071253,1841.4,1841.1,0.31749707]
[1746335350269,6.88146345,1841.5,1841.1,0.31749707]
[1746335351049,6.88146345,1841.5,1841.1,5.74892797]
[1746335351640,12.31207048,1841.5,1841.1,5.74892797]
[1746335351831,6.88146345,1841.5,1841.1,5.74892797]
[1746335352034,5.43072633,1841.4,1841.1,0.31749707]
[1746335352548,0.7896,1841.8,1841.3,5.4308347]
[1746335352858,5.42960078,1841.8,1841.5,0.8015]
[1746335353349,5.42960078,1841.8,1841.6,0.31464014]
[1746335353739,5.42976597,1841.7,1841.6,0.31464014]
[1746335354144,10.85977361,1841.7,1841.3,0.7596]
[1746335354359,0.7567,1841.6,1841.0,3.7596]
[1746335354513,5.43108968,1841.3,1841.0,0.7596]
[1746335355047,5.43066791,1841.4,1841.0,0.7596]
[1746335355206,5.43066791,1841.4,1841.0,6.19128131]
[1746335355413,5.43054497,1841.5,1841.0,6.19119637]
[1746335355610,6.1869299,1841.6,1841.1,5.43134825]
[1746335355810,5.43037768,1841.5,1841.1,5.43132783]
[1746335357153,0.7567,1841.6,1841.1,5.43132783]
[1746335357528,0.7567,1841.6,1841.2,0.7596]
[1746335357722,6.18696964,1841.6,1841.2,0.7596]
[1746335357930,11.46987049,1841.7,1841.3,5.43092616]
[1746335358417,5.4301271,1841.6,1841.2,6.80976304]
[1746335358615,5.4301271,1841.6,1841.2,6.19067026]
[1746335359554,5.4301271,1841.6,1841.2,0.7596]
[1746335359732,5.43040796,1841.5,1841.2,0.7596]
[1746335360459,5.43066198,1841.4,1841.0,10.21220101]
[1746335361152,5.43140053,1841.2,1841.0,0.7959]
[1746335361743,5.43110371,1841.3,1841.0,0.7959]
[1746335363330,5.43212559,1840.9,1840.6,3.65494514]
[1746335363656,5.43252691,1840.8,1840.6,3.65494514]
[1746335363843,6.21155419,1840.9,1840.6,4.02043965]
[1746335364046,5.43225419,1840.9,1840.6,4.02043965]
[1746335364342,5.43203169,1841.0,1840.7,1.0878394]
[1746335365858,10.86415163,1841.0,1840.7,1.0878394]
[1746335366453,5.43203169,1841.0,1840.7,1.0878394]
[1746335366658,5.43228813,1840.9,1840.7,0.2919394]
[1746335366834,5.43242068,1840.8,1840.7,0.2919394]
[1746335367249,5.43229429,1840.9,1840.7,0.2919394]
[1746335368742,10.86467512,1840.9,1840.7,0.2919394]
[1746335369033,5.43229429,1840.9,1840.7,0.2919394]
[1746335369971,5.43242068,1840.8,1840.7,0.2919394]
[1746335370754,5.43286227,1840.7,1840.5,3.7959]
[1746335370938,5.43286227,1840.7,1840.5,3.0]
[1746335372883,5.4328619,1840.7,1840.5,3.0]
[1746335373760,5.43301097,1840.6,1840.5,3.0]
[1746335374056,5.43301097,1840.6,1840.4,4.58]
[1746335374270,5.43286504,1840.7,1840.4,5.49948318]
[1746335376898,5.43261261,1840.8,1840.4,10.93304153]
[1746335377103,5.43225801,1840.9,1840.5,6.19909573]
[1746335377610,6.04,1841.1,1840.7,6.19838663]
[1746335377910,6.04,1841.1,1840.9,5.4321197]
[1746335378087,6.04,1841.1,1841.0,0.7833]
[1746335378282,5.43078312,1841.4,1841.0,6.83665521]
[1746335378480,5.43051189,1841.5,1841.0,8.42811916]
[1746335378684,9.0917064,1841.5,1841.0,8.42811916]
[1746335378994,3.66119451,1841.5,1841.1,3.0]
[1746335379193,3.66119451,1841.5,1841.3,0.7833]
[1746335379573,3.66119451,1841.5,1841.4,0.29061589]
[1746335379780,3.66119451,1841.5,1841.3,0.7833]
[1746335380101,3.66119451,1841.5,1841.4,0.29061589]
[1746335381077,3.66119451,1841.5,1841.3,7.00014417]
[1746335381395,5.42994581,1841.7,1841.4,0.29061589]
[1746335381599,5.42994581,1841.7,1841.3,7.00014417]
[1746335381781,5.42994581,1841.7,1841.5,0.29014783]
[1746335381981,5.42994581,1841.7,1841.3,7.00014417]
[1746335382191,5.42994581,1841.7,1841.6,0.28967982]
[1746335382507,5.43007053,1841.6,1841.2,10.80952953]
[1746335383605,5.42994581,1841.7,1841.2,10.80952953]
[1746335383809,10.86000306,1841.7,1841.2,10.80952953]
[1746335384113,5.43009398,1841.6,1841.2,10.80952953]
[1746335384930,5.42994427,1841.7,1841.3,5.43090914]
[1746335386597,5.42994427,1841.7,1841.3,6.63805917]
[1746335387912,5.43011117,1841.6,1841.3,1.20715003]
[1746335388120,5.43011117,1841.6,1841.2,5.78688872]
[1746335388609,5.43011117,1841.6,1841.2,11.21810563]
[1746335389014,5.42994674,1841.7,1841.3,5.43094071]
[1746335389790,5.43006556,1841.6,1841.2,11.2180152]
[1746335390109,5.4299085,1841.7,1841.3,1.12180152]
[1746335390278,5.4299085,1841.7,1841.3,6.55274596]
[1746335391511,5.4299085,1841.7,1841.3,1.12180152]
[1746335392714,5.4299085,1841.7,1841.3,6.552744]
[1746335393011,5.4299085,1841.7,1841.3,6.60704788]
[1746335393239,10.85991291,1841.7,1841.3,6.552744]
[1746335393714,5.4299085,1841.7,1841.3,6.552744]
[1746335394010,5.4299085,1841.7,1841.3,1.12180152]
[1746335394224,5.43052411,1841.5,1841.2,5.3783]
[1746335394383,5.43052411,1841.5,1841.4,0.28825039]
[1746335394583,5.43052411,1841.5,1841.2,5.3783]
[1746335394784,5.43052411,1841.5,1841.4,0.28825039]
[1746335395003,5.43052411,1841.5,1841.2,5.3783]
[1746335395201,5.43015786,1841.6,1841.3,0.2887185]
[1746335395433,10.86047604,1841.6,1841.3,0.2887185]
[1746335395775,5.43036575,1841.5,1841.3,0.2887185]
[1746335396810,10.86047007,1841.6,1841.3,0.2887185]
[1746335397013,5.43015786,1841.6,1841.3,0.2887185]
[1746335397205,5.43035829,1841.5,1841.3,0.2887185]
[1746335398416,5.43065059,1841.4,1841.3,0.2887185]
[1746335399122,5.43065059,1841.4,1841.0,6.25917428]
[1746335399321,5.43065059,1841.4,1841.3,0.28662758]
[1746335399517,5.43065059,1841.4,1841.0,6.25917428]
[1746335399710,6.25464385,1841.5,1841.3,0.28662758]
[1746335399918,5.43054385,1841.5,1841.2,0.8275]
[1746335400086,5.43054385,1841.5,1841.4,0.28615947]
[1746335400917,5.43082917,1841.4,1841.0,6.25915463]
[1746335401117,5.43082917,1841.4,1841.0,6.88507009]
[1746335401824,5.43052528,1841.5,1841.0,6.88504247]
[1746335402120,5.43052528,1841.5,1841.1,5.43152916]
[1746335402309,6.25433951,1841.6,1841.1,10.86285811]
[1746335402515,6.25433951,1841.6,1841.1,5.43132895]
[1746335402699,5.43040882,1841.5,1841.1,5.43132895]
[1746335403034,6.25433951,1841.6,1841.2,0.7927]
[1746335403035,11.68469143,1841.6,1841.2,0.7927]
[1746335403199,5.4304849,1841.5,1841.2,0.7927]
[1746335404298,6.25431878,1841.6,1841.0,5.43164904]
[1746335404299,5.4308923,1841.4,1841.0,5.43164904]
[1746335404497,5.4308923,1841.4,1841.0,6.76751394]
[1746335404936,5.4308923,1841.4,1841.0,1.3358649]
[1746335405112,5.43142284,1841.2,1840.8,5.3867]
[1746335405313,5.4315425,1841.1,1840.8,5.3867]
[1746335405524,5.43169643,1841.1,1840.8,5.3867]
[1746335405840,5.43154216,1841.1,1840.8,5.3867]
[1746335406012,5.43138887,1841.2,1840.8,5.3867]
[1746335407600,5.43138887,1841.2,1840.8,10.81911275]
[1746335407800,5.43138887,1841.2,1840.8,12.48522365]
[1746335409416,5.43138887,1841.2,1840.9,0.28971659]
[1746335410243,6.19177582,1841.3,1840.9,0.28971659]
[1746335410439,5.43145074,1841.2,1840.9,0.28971659]
[1746335410816,5.43157065,1841.1,1840.9,0.28971659]
[1746335412449,6.19176164,1841.3,1840.9,0.28971659]
[1746335412738,10.86226656,1841.3,1840.9,0.28971659]
[1746335412943,5.43126499,1841.2,1840.9,0.28971659]
[1746335414644,6.8156,1841.5,1840.9,6.83268939]
[1746335414953,5.4308065,1841.4,1841.0,0.7886]
[1746335415242,5.43106204,1841.3,1841.1,0.28878001]
[1746335416635,11.47053994,1841.5,1841.1,0.28878001]
[1746335416848,11.47053994,1841.5,1841.1,5.72021403]
[1746335417439,11.47053994,1841.5,1841.2,0.7886]
[1746335417630,11.47053994,1841.5,1841.2,1.07763155]
[1746335419057,6.04,1841.5,1841.2,6.50886381]
[1746335420051,6.04,1841.5,1841.2,1.07763155]
[1746335420541,6.04,1841.5,1841.2,6.50885426]
[1746335424267,5.43017063,1841.6,1841.2,6.50885426]
[1746335424439,5.43017063,1841.6,1841.2,7.16517066]
[1746335425080,5.42994942,1841.7,1841.2,12.5961852]
[1746335425228,5.42994942,1841.7,1841.3,5.4309415]
[1746335425429,5.42994942,1841.7,1841.3,5.71950489]
[1746335426758,5.43006524,1841.6,1841.3,0.28856339]
[1746335426941,5.42995819,1841.7,1841.3,1.00501282]
[1746335427262,10.85996404,1841.7,1841.3,1.00501282]
[1746335428281,6.24276164,1842.0,1841.5,0.8149]
[1746335428568,5.42921845,1841.9,1841.5,6.29941931]
[1746335428774,5.42921845,1841.9,1841.6,0.91477063]
[1746335429762,6.24291845,1841.9,1841.6,0.91477063]
[1746335429966,11.67234156,1841.9,1841.6,0.91477063]
[1746335430270,6.24291845,1841.9,1841.6,0.2848287]
[1746335430653,5.42866754,1842.1,1841.8,0.8149]
[1746335431075,5.42866754,1842.1,1841.9,0.28253421]
[1746335431276,9.08967445,1842.2,1841.8,0.8149]
[1746335431574,9.08967445,1842.2,1841.9,0.28253421]
[1746335431879,9.08967445,1842.2,1841.8,6.24433086]
[1746335432178,9.08967445,1842.2,1841.9,0.40609917]
[1746335432476,9.08967445,1842.2,1841.8,1.9822805]
[1746335432665,5.42865037,1842.1,1841.9,0.40609917]
[1746335432867,5.42865037,1842.1,1841.8,1.9822805]
[1746335433063,5.42865037,1842.1,1841.9,0.40609917]
[1746335433278,5.42865037,1842.1,1841.8,1.9822805]
[1746335433454,5.42865037,1842.1,1841.9,0.40609917]
[1746335433656,5.42865037,1842.1,1841.8,1.9822805]
[1746335433855,5.42865037,1842.1,1841.9,0.40609917]
[1746335434051,5.42865037,1842.1,1841.8,1.9822805]
[1746335434256,5.42865037,1842.1,1842.0,0.40562462]
[1746335434457,5.42865037,1842.1,1841.8,1.9822805]
[1746335434669,5.42865037,1842.1,1842.0,0.40562462]
[1746335434978,5.42865037,1842.1,1841.8,1.9822805]
[1746335435181,5.42865037,1842.1,1842.0,0.40562462]
[1746335435384,5.42865037,1842.1,1841.9,0.40609917]
[1746335435586,5.42865037,1842.1,1842.0,0.40562462]
[1746335435884,5.42865037,1842.1,1841.8,1.9822805]
[1746335436082,5.42865037,1842.1,1841.9,0.40609917]
[1746335436282,5.42865037,1842.1,1841.8,0.8149]
[1746335436482,5.42865037,1842.1,1842.0,0.40562462]
[1746335436781,5.42865037,1842.1,1841.8,0.8149]
[1746335436976,5.42865037,1842.1,1842.0,0.40562462]
[1746335437183,5.42865037,1842.1,1841.9,0.40609917]
[1746335437382,5.42865037,1842.1,1842.0,0.40562462]
[1746335437753,5.42865037,1842.1,1841.8,0.8149]
[1746335437954,5.42865037,1842.1,1842.0,0.40562462]
[1746335438154,5.42865037,1842.1,1841.9,0.40609917]
[1746335438365,5.42865037,1842.1,1842.0,0.40562462]
[1746335438780,5.42865037,1842.1,1841.8,0.8149]
[1746335439080,5.42865037,1842.1,1841.9,0.40609917]
[1746335439273,5.42865037,1842.1,1841.8,0.8149]
[1746335439475,5.42865037,1842.1,1841.9,0.40609917]
[1746335439664,5.42865037,1842.1,1841.8,0.8149]
[1746335439866,5.42865037,1842.1,1842.0,0.40562462]
[1746335440182,5.42865037,1842.1,1841.8,0.8149]
[1746335440483,5.42865037,1842.1,1841.9,0.40609917]
[1746335440683,5.42865037,1842.1,1841.8,0.8149]
[1746335440848,5.42865037,1842.1,1842.0,0.40562462]
[1746335441049,5.42865037,1842.1,1841.8,0.8149]
[1746335441287,5.42865037,1842.1,1842.0,0.40562462]
[1746335441584,5.42865037,1842.1,1841.8,0.8149]
[1746335441784,5.42865037,1842.1,1842.0,0.40562462]
[1746335442099,5.42847931,1842.2,1842.0,0.40562462]
[1746335442257,5.42859991,1842.1,1841.8,0.8149]
[1746335442985,10.85747175,1842.1,1841.8,0.8149]
[1746335443187,0.78338176,1842.2,1841.6,0.7993]
[1746335443395,5.42916121,1842.0,1841.6,0.7993]
[1746335443595,5.42916121,1842.0,1841.6,6.22929833]
[1746335447798,5.42913244,1842.0,1841.6,6.22929833]
[1746335448481,11.6319107,1842.1,1841.7,5.42976297]
[1746335448674,5.4287772,1842.1,1841.7,5.42976297]
[1746335449077,5.4284361,1842.2,1841.8,0.8004]
[1746335449582,5.4284361,1842.2,1841.8,6.22984797]
[1746335450402,5.4284361,1842.2,1841.8,0.8004]
[1746335451482,5.4284361,1842.2,1841.8,6.22983523]
[1746335451906,5.4284361,1842.2,1841.8,0.8004]
[1746335452909,5.42870034,1842.1,1841.8,0.8004]
[1746335453207,5.42840734,1842.2,1841.8,6.22986158]
[1746335453625,10.8569418,1842.2,1841.8,6.22986158]
[1746335454225,10.8569418,1842.2,1841.9,0.40479742]
[1746335454414,10.8569418,1842.2,1841.8,6.22986158]
[1746335454723,5.42840734,1842.2,1841.9,0.40479742]
[1746335454923,10.85695302,1842.2,1841.8,0.8004]
[1746335455131,5.42840734,1842.2,1842.0,0.40432287]
[1746335455328,5.42840734,1842.2,1841.8,0.8004]
[1746335455329,10.85696927,1842.2,1841.8,0.8004]
[1746335455497,5.42840734,1842.2,1842.1,0.40384838]
[1746335455822,5.42840734,1842.2,1841.8,0.8004]
[1746335455823,5.42866553,1842.1,1841.8,0.8004]
[1746335456121,5.4289124,1842.0,1841.8,0.8004]
[1746335456427,5.4287304,1842.1,1841.8,0.8004]
[1746335458425,6.89052719,1842.2,1841.8,0.8004]
[1746335458719,5.42859662,1842.1,1841.8,0.8004]
[1746335461032,6.89049235,1842.2,1841.8,6.22986753]
[1746335461219,5.42870085,1842.1,1841.8,0.8004]
[1746335461827,6.89049754,1842.2,1841.8,6.22986882]
[1746335461997,5.42848591,1842.2,1841.8,6.22986882]
[1746335462203,9.19174238,1842.3,1841.8,6.22968842]
[1746335462717,5.42830554,1842.2,1841.8,0.8004]
[1746335462911,5.42869528,1842.1,1841.7,5.42958053]
[1746335463111,5.42869528,1842.1,1841.7,6.23168053]
[1746335463619,6.25230458,1842.0,1841.6,6.23205971]
[1746335464027,5.42968046,1841.8,1841.6,0.8021]
[1746335464228,5.42933725,1841.9,1841.4,0.8021]
[1746335464448,7.84394671,1842.0,1841.4,6.2325276]
[1746335464618,5.42933716,1841.9,1841.5,5.4303405]
[1746335464942,5.42933716,1841.9,1841.5,6.59662731]
[1746335467234,6.25232398,1842.0,1841.5,1.16628681]
[1746335467441,5.42932796,1841.9,1841.5,5.43034642]
[1746335469057,5.42932796,1841.9,1841.4,6.23260321]
[1746335469256,5.42958419,1841.8,1841.5,0.40733602]
[1746335469466,5.42927063,1841.9,1841.5,5.83762039]
[1746335470234,6.25237627,1842.0,1841.5,5.83762039]
[1746335470554,5.4292912,1841.9,1841.5,5.83762039]
[1746335471683,5.43006081,1841.6,1841.5,0.40733602]
[1746335471849,5.43006081,1841.6,1841.2,0.7961]
[1746335472050,5.43006081,1841.6,1841.3,0.37470789]
[1746335472572,5.42992224,1841.7,1841.3,0.37470789]
[1746335472774,5.42926077,1841.9,1841.5,0.7961]
[1746335472997,5.42926077,1841.9,1841.5,6.22635205]
[1746335473142,12.98101895,1842.0,1841.6,5.80431264]
[1746335473977,9.98101895,1842.0,1841.6,5.80431264]
[1746335474280,5.42845045,1842.2,1841.7,6.81477135]
[1746335474563,5.42800074,1842.3,1841.9,6.23383097]
[1746335474764,9.70119451,1842.4,1842.2,5.42825261]
[1746335474765,3.66119451,1842.4,1842.2,5.42825261]
[1746335474956,3.66119451,1842.4,1842.3,0.8048]
[1746335475159,5.67794177,1842.6,1842.3,1.17445507]
[1746335475356,5.42749736,1842.5,1842.3,1.17445507]
[1746335475562,6.84979274,1842.6,1842.3,1.17445507]
[1746335475736,5.42744625,1842.5,1842.3,1.17445507]
[1746335476578,5.42770299,1842.4,1842.3,0.36965507]
[1746335476871,5.42770299,1842.4,1842.1,0.8048]
[1746335477038,5.42770299,1842.4,1842.3,0.36965507]
[1746335477378,12.01908964,1842.4,1842.1,0.8048]
[1746335477552,5.42770299,1842.4,1842.3,0.36965507]
[1746335477877,5.42799761,1842.3,1842.1,0.8048]
[1746335478383,2.37073828,1842.5,1841.9,0.7924]
[1746335478591,5.42871259,1842.1,1841.9,0.7924]
[1746335480281,5.42888165,1842.0,1841.7,4.2353764]
[1746335480448,5.42877045,1842.1,1841.7,5.0277764]
[1746335480648,5.42893705,1842.0,1841.7,5.0277764]
[1746335480953,5.42944135,1841.9,1841.7,3.65494514]
[1746335481589,5.42947116,1841.8,1841.7,3.65494514]
[1746335482769,5.42932833,1841.9,1841.6,0.7924]
[1746335482970,10.85877715,1841.9,1841.6,0.7924]
[1746335483149,5.42952767,1841.8,1841.6,0.7924]
[1746335483345,5.42976597,1841.7,1841.4,8.20694514]
[1746335483554,5.42976597,1841.7,1841.4,10.42913897]
[1746335483889,6.22251402,1841.7,1841.4,3.65494514]
[1746335484060,5.42998134,1841.7,1841.4,3.65494514]
[1746335484383,5.42998134,1841.7,1841.5,1.16544284]
[1746335485995,5.42998134,1841.7,1841.5,0.37304284]
[1746335486153,5.43006081,1841.6,1841.5,0.37304284]
[1746335486589,5.42992325,1841.7,1841.5,0.37304284]
[1746335487098,5.42992325,1841.7,1841.3,6.22326842]
[1746335487267,5.42992325,1841.7,1841.6,0.37301101]
[1746335487755,5.42992325,1841.7,1841.3,0.7924]
[1746335487756,5.43008589,1841.6,1841.3,0.7924]
[1746335488980,5.4295866,1841.8,1841.3,0.7924]
[1746335488981,5.42994707,1841.7,1841.3,0.7924]
[1746335489177,5.42994707,1841.7,1841.3,6.22319504]
[1746335489368,5.42994707,1841.7,1841.3,6.27749702]
[1746335489571,5.42994707,1841.7,1841.4,0.6277497]
[1746335489771,5.42994707,1841.7,1841.3,6.22319504]
[1746335491599,5.42994707,1841.7,1841.3,6.27749702]
[1746335493584,5.42994707,1841.7,1841.3,6.22319504]
[1746335493783,5.42994707,1841.7,1841.3,0.7924]
[1746335494198,5.43009277,1841.6,1841.3,0.7924]
[1746335494399,5.43009277,1841.6,1841.3,1.91142354]
[1746335494598,5.42995326,1841.7,1841.3,1.91142354]
[1746335494771,5.42995326,1841.7,1841.3,7.34231329]
[1746335495505,5.42930895,1841.9,1841.5,5.43032894]
[1746335495675,5.42930895,1841.9,1841.5,6.24702596]
[1746335496006,5.4295162,1841.8,1841.5,0.7624]
[1746335497670,5.4295162,1841.8,1841.5,0.81669813]
[1746335497876,5.4295162,1841.8,1841.5,0.7624]
[1746335498105,5.42941899,1841.9,1841.5,0.7624]
[1746335498308,5.42954078,1841.8,1841.5,0.7624]
[1746335498806,5.42978695,1841.7,1841.5,0.7624]